fUSD/lending_fUSD_20260412
["ID","MTS","AMOUNT","RATE_DAILY","PERIOD"]
[420316472,1775956235549,-169.52179159,0.00014772,2]
[420316473,1775956235559,-150.0,0.00014772,2]
[420316474,1775956235571,-150.0,0.00014772,2]
[420316475,1775956235590,-150.0,0.00014776,2]
[420316476,1775956235600,-150.0,0.00014782,2]
[420316477,1775956235615,-150.0,0.00014783,2]
[420316478,1775956235632,-169.52179159,0.00014788,2]
[420316479,1775956235641,-150.0,0.00014791,2]
[420316480,1775956235659,-150.0,0.00014791,2]
[420316481,1775956235676,-150.0,0.00014794,2]
[420316482,1775956235685,-150.0,0.000148,2]
[420316483,1775956235710,-150.0,0.000148,2]
[420316484,1775956235720,-169.52179159,0.00014804,2]
[420316485,1775956235734,-150.0,0.00014806,2]
[420316486,1775956235753,-150.0,0.00014809,2]
[420316487,1775956235762,-150.0,0.00014809,2]
[420316488,1775956235777,-150.0,0.00014811,2]
[420316489,1775956235790,-150.0,0.00014817,2]
[420316490,1775956235800,-150.0,0.00014817,2]
[420316491,1775956235812,-150.0,0.00014818,2]
[420316492,1775956235823,-169.52179159,0.0001482,2]
[420316493,1775956235832,-150.0,0.00014824,2]
[420316494,1775956235842,-150.0,0.00014828,2]
[420316495,1775956235860,-150.0,0.00014828,2]
[420316496,1775956235869,-150.0,0.00014828,2]
[420316497,1775956235878,-210.81,0.00014829,2]
[420316498,1775956235893,-150.0,0.00014836,2]
[420316499,1775956235907,-169.52179159,0.00014836,2]
[420316500,1775956235916,-150.0,0.00014841,2]
[420316501,1775956235937,-150.0,0.00014847,2]
[420316502,1775956235960,-150.0,0.00014847,2]
[420316503,1775956235971,-150.0,0.00014851,2]
[420316504,1775956235982,-169.52179159,0.00014853,2]
[420316505,1775956235996,-150.0,0.00014855,2]
[420316506,1775956236005,-150.0,0.00014857,2]
[420316507,1775956236014,-150.0,0.00014864,2]
[420316508,1775956236026,-150.0,0.00014865,2]
[420316509,1775956236042,-150.0,0.00014865,2]
[420316510,1775956236052,-169.52179159,0.00014869,2]
[420316511,1775956236062,-150.0,0.00014871,2]
[420316512,1775956236077,-150.0,0.00014873,2]
[420316513,1775956236086,-150.0,0.00014873,2]
[420316514,1775956236095,-150.0,0.0001488,2]
[420316515,1775956236110,-150.0,0.00014884,2]
[420316516,1775956236119,-150.0,0.00014884,2]
[420316517,1775956236128,-169.52179159,0.00014885,2]
[420316518,1775956236146,-150.0,0.00014887,2]
[420316519,1775956236155,-150.0,0.00014887,2]
[420316520,1775956236175,-150.0,0.00014891,2]
[420316521,1775956236185,-150.0,0.00014896,2]
[420316522,1775956236194,-169.52179159,0.00014901,2]
[420316523,1775956236215,-150.0,0.00014902,2]
[420316524,1775956236228,-150.0,0.00014902,2]
[420316525,1775956236237,-150.0,0.00014903,2]
[420316526,1775956236246,-150.0,0.00014909,2]
[420316527,1775956236258,-150.0,0.0001491,2]
[420316528,1775956236274,-169.52179159,0.00014917,2]
[420316529,1775956236284,-150.0,0.00014918,2]
[420316530,1775956236295,-150.0,0.00014918,2]
[420316531,1775956236309,-150.0,0.00014921,2]
[420316532,1775956236333,-150.0,0.00014921,2]
[420316533,1775956236343,-150.0,0.00014927,2]
[420316534,1775956236354,-150.0,0.00014933,2]
[420316535,1775956236380,-150.0,0.00014933,2]
[420316536,1775956236398,-150.0,0.00014933,2]
[420316537,1775956236416,-169.52179159,0.00014933,2]
[420316538,1775956236426,-150.0,0.0001494,2]
[420316539,1775956236448,-150.0,0.0001494,2]
[420316540,1775956236474,-150.0,0.00014941,2]
[420316541,1775956236484,-150.0,0.00014945,2]
[420316542,1775956236493,-150.0,0.00014949,2]
[420316543,1775956236514,-169.52179159,0.00014949,2]
[420316544,1775956236532,-150.0,0.00014957,2]
[420316545,1775956236542,-150.0,0.00014957,2]
[420316546,1775956236572,-150.0,0.00014958,2]
[420316547,1775956236581,-150.0,0.00014958,2]
[420316548,1775956236593,-150.0,0.00014963,2]
[420316549,1775956236607,-150.0,0.00014964,2]
[420316550,1775956236618,-150.0,0.00014965,2]
[420316551,1775956236631,-169.52179159,0.00014966,2]
[420316552,1775956236642,-150.0,0.00014977,2]
[420316553,1775956236653,-150.0,0.00014977,2]
[420316554,1775956236665,-166.66,0.00014977,2]
[420316555,1775956236685,-150.0,0.0001498,2]
[420316556,1775956236694,-150.0,0.00014982,2]
[420316557,1775956236706,-169.52179159,0.00014982,2]
[420316558,1775956236715,-150.0,0.00014986,2]
[420316559,1775956236728,-150.0,0.00014994,2]
[420316560,1775956236741,-88.26851122,0.00014995,2]
[420316561,1775956237644,-61.73148878,0.00014995,2]
[420316562,1775956237655,-150.0,0.00014995,2]
[420316563,1775956237678,-169.52179159,0.00014998,2]
[420316564,1775956237689,-300.0,0.00015,2]
[420316565,1775956237698,-150.0,0.00015,2]
[420316566,1775956237708,-150.0,0.00015003,2]
[420316567,1775956237727,-150.0,0.00015008,2]
[420316568,1775956237736,-150.0,0.00015012,2]
[420316569,1775956237747,-56.45658171,0.00015014,2]
[420316570,1775956237770,-93.54341829,0.00015014,2]
[420316571,1775956237780,-150.0,0.00015014,2]
[420316572,1775956237802,-169.52179159,0.00015014,2]
[420316573,1775956237812,-150.0,0.00015018,2]
[420316574,1775956237822,-150.0,0.00015026,2]
[420316575,1775956237842,-150.0,0.00015026,2]
[420316576,1775956237852,-169.52179159,0.0001503,2]
[420316577,1775956237865,-150.0,0.00015031,2]
[420316578,1775956237889,-150.0,0.00015033,2]
[420316579,1775956237900,-150.0,0.00015033,2]
[420316580,1775956237909,-2.5998302,0.00015036,2]
[420316581,1775956237930,-147.4001698,0.00015036,2]
[420316582,1775956237949,-150.0,0.0001504,2]
[420316583,1775956237960,-150.0,0.0001504,2]
[420316584,1775956237970,-169.52179159,0.00015046,2]
[420316585,1775956237979,-150.0,0.00015049,2]
[420316586,1775956237998,-29.22917478,0.00015051,2]
[420316587,1775956238079,-120.77082522,0.00015051,2]
[420316588,1775956238095,-150.0,0.00015051,2]
[420316589,1775956238105,-150.0,0.00015054,2]
[420316590,1775956238130,-150.0,0.00015055,2]
[420316591,1775956238142,-150.0,0.00015059,2]
[420316592,1775956238156,-169.52179159,0.00015063,2]
[420316593,1775956238167,-150.0,0.0001507,2]
[420316594,1775956238177,-150.0,0.0001507,2]
[420316595,1775956238191,-150.0,0.00015072,2]
[420316596,1775956238207,-150.0,0.00015073,2]
[420316597,1775956238221,-150.0,0.00015076,2]
[420316598,1775956238247,-169.52179159,0.00015079,2]
[420316599,1775956238258,-150.0,0.00015086,2]
[420316600,1775956238285,-210.81,0.00015087,2]
[420316601,1775956238297,-109.14562964,0.00015088,2]
[420316602,1775956238311,-40.85437036,0.00015088,2]
[420316603,1775956238331,-150.0,0.00015088,2]
[420316605,1775956238344,-150.0,0.00015091,2]
[420316607,1775956238354,-169.52179159,0.00015095,2]
[420316608,1775956238394,-150.0,0.00015096,2]
[420316609,1775956238406,-150.0,0.00015096,2]
[420316610,1775956238432,-150.0,0.00015099,2]
[420316611,1775956238442,-150.0,0.00015106,2]
[420316612,1775956238457,-139.01423062,0.00015107,2]
[420316614,1775956238475,-10.98576938,0.00015107,2]
[420316616,1775956238485,-150.0,0.00015107,2]
[420316618,1775956238501,-150.0,0.00015109,2]
[420316620,1775956238513,-169.52179159,0.00015111,2]
[420316624,1775956238893,-19.49243903,0.00015119,2]
[420316625,1775956238907,-130.50756097,0.00015119,2]
[420316626,1775956238923,-150.0,0.00015121,2]
[420316627,1775956238950,-150.0,0.00015126,2]
[420316628,1775956238961,-150.0,0.00015126,2]
[420316629,1775956238983,-150.0,0.00015127,2]
[420316630,1775956238992,-169.52179159,0.00015127,2]
[420316631,1775956239017,-150.0,0.00015131,2]
[420316632,1775956239046,-150.0,0.00015142,2]
[420316633,1775956239056,-122.34617076,0.00015143,2]
[420316634,1775956239092,-47.17562083,0.00015143,2]
[420316635,1775956239117,-150.0,0.00015144,2]
[420316636,1775956239147,-150.0,0.00015144,2]
[420316638,1775956239158,-150.0,0.00015144,2]
[420316640,1775956239182,-150.0,0.00015145,2]
[420316642,1775956239208,-150.0,0.00015153,2]
[420316644,1775956239218,-169.52179159,0.0001516,2]
[420316645,1775956239235,-150.0,0.00015163,2]
[420316647,1775956239245,-150.0,0.00015163,2]
[420316649,1775956239255,-150.0,0.00015164,2]
[420316651,1775956239265,-150.0,0.00015165,2]
[420316653,1775956239276,-150.0,0.00015165,2]
[420316655,1775956239289,-150.0,0.00015166,2]
[420316657,1775956239298,-2500.0,0.00015173,2]
[420316659,1775956239309,-225.0,0.00015174,2]
[420316661,1775956239319,-169.52179159,0.00015176,2]
[420316662,1775956239332,-150.0,0.00015177,2]
[420316663,1775956239341,-150.0,0.00015181,2]
[420316664,1775956239352,-150.0,0.00015181,2]
[420316665,1775956239362,-150.0,0.00015182,2]
[420316666,1775956239372,-150.0,0.00015188,2]
[420316667,1775956239382,-150.0,0.00015189,2]
[420316668,1775956239391,-169.52179159,0.00015192,2]
[420316669,1775956239405,-150.0,0.000152,2]
[420316670,1775956239416,-127.89800054,0.000152,2]
[420316671,1775956239428,-22.10199946,0.000152,2]
[420316672,1775956239438,-150.0,0.000152,2]
[420316673,1775956239450,-150.0,0.000152,2]
[420316674,1775956239469,-150.0,0.000152,2]
[420316675,1775956239478,-150.0,0.000152,2]
[420316677,1775956239487,-150.0,0.000152,2]
[420316678,1775956239507,-376.65847993,0.00015201,2]
[420316682,1775956239543,-797.59445327,0.00015201,2]
[420316684,1775956239555,-765.71157577,0.00015201,2]
[420316703,1775956240616,-9481.29492657,0.00015201,2]
[420316704,1775956240626,-1921.48499992,0.00015201,2]
[420316705,1775956240636,-169.52179159,0.00015208,2]
[420316706,1775956240659,-150.0,0.00015211,2]
[420316707,1775956240668,-150.0,0.00015212,2]
[420316708,1775956240680,-150.0,0.00015218,2]
[420316709,1775956240693,-150.0,0.00015219,2]
[420316710,1775956240709,-150.0,0.00015219,2]
[420316711,1775956240723,-150.0,0.00015223,2]
[420316712,1775956240732,-169.52179159,0.00015224,2]
[420316713,1775956240751,-150.0,0.00015234,2]
[420316714,1775956240761,-150.0,0.00015235,2]
[420316715,1775956240771,-150.0,0.00015235,2]
[420316716,1775956240790,-150.0,0.00015236,2]
[420316717,1775956240800,-150.0,0.00015237,2]
[420316718,1775956240809,-150.0,0.00015237,2]
[420316719,1775956240823,-169.52179159,0.0001524,2]
[420316720,1775956240842,-150.0,0.00015247,2]
[420316721,1775956240852,-150.0,0.00015255,2]
[420316722,1775956240861,-150.0,0.00015256,2]
[420316723,1775956240875,-150.0,0.00015256,2]
[420316724,1775956240886,-150.0,0.00015256,2]
[420316725,1775956240900,-169.52179159,0.00015257,2]
[420316726,1775956240909,-150.0,0.00015258,2]
[420316727,1775956240921,-150.0,0.00015269,2]
[420316728,1775956240935,-500.0,0.00015273,2]
[420316729,1775956240945,-500.0,0.00015273,2]
[420316730,1775956240954,-500.0,0.00015273,2]
[420316731,1775956240963,-500.0,0.00015273,2]
[420316732,1775956240977,-500.0,0.00015273,2]
[420316733,1775956240988,-500.0,0.00015273,2]
[420316734,1775956240997,-500.0,0.00015273,2]
[420316735,1775956241006,-500.0,0.00015273,2]
[420316736,1775956241022,-150.0,0.00015273,2]
[420316737,1775956241033,-169.52179159,0.00015273,2]
[420316738,1775956241042,-150.0,0.00015274,2]
[420316739,1775956241054,-150.0,0.00015274,2]
[420316740,1775956241071,-150.0,0.00015279,2]
[420316741,1775956241083,-166.66,0.0001528,2]
[420316742,1775956241092,-150.0,0.00015281,2]
[420316743,1775956241106,-157.16,0.00015281,2]
[420316744,1775956241115,-2000.0,0.00015281,2]
[420316745,1775956241128,-169.52179159,0.00015289,2]
[420316746,1775956241144,-150.0,0.00015291,2]
[420316747,1775956241155,-150.0,0.00015293,2]
[420316748,1775956241166,-150.0,0.00015293,2]
[420316749,1775956241179,-150.0,0.00015294,2]
[420316750,1775956241194,-1083.24078526,0.00015299,5]
[420316751,1775956241205,-1101.01385598,0.00015299,5]
[420316752,1775956241217,-500.0,0.00015299,2]
[420316753,1775956241254,-500.0,0.00015299,2]
[420316754,1775956241265,-500.0,0.00015299,2]
[420316755,1775956241284,-500.0,0.00015299,2]
[420316756,1775956241311,-500.0,0.00015299,2]
[420316757,1775956241325,-500.0,0.00015299,2]
[420316758,1775956241341,-500.0,0.00015299,2]
[420316759,1775956241373,-500.0,0.00015299,2]
[420316760,1775956241384,-500.0,0.00015299,2]
[420316761,1775956241412,-500.0,0.00015299,2]
[420316762,1775956241421,-500.0,0.00015299,2]
[420316763,1775956241433,-500.0,0.00015299,2]
[420316764,1775956241457,-500.0,0.00015299,2]
[420316765,1775956241466,-28340.18637768,0.000153,2]
[420316766,1775956241478,-5194.8976806,0.000153,2]
[420316767,1775956241512,-2592.62594964,0.000153,2]
[420316769,1775956241530,-1049.53799999,0.000153,2]
[420316771,1775956241567,-719.0,0.000153,2]
[420316772,1775956241601,-4329.30631196,0.000153,2]
[420316773,1775956241625,-20060.49647241,0.000153,2]
[420316774,1775956241651,-598.26313241,0.000153,2]
[420316775,1775956241945,-280.812016,0.00014336,2]
[420316776,1775956241962,-5755.187984,0.000153,2]
[420316777,1775956242037,-606.6000014,0.000153,2]
[420316778,1775956242057,-4322.40124996,0.000153,2]
[420316779,1775956243542,-8583.88815878,0.000153,2]
[420316780,1775956243720,-210714.49873294,0.000153,2]
[420316781,1775956243817,-4159.83350428,0.000153,2]
[420316792,1775956246481,-1193.50855844,0.000153,2]
[420316793,1775956246626,-678.09499637,0.000153,2]
[420316794,1775956246638,-4772.49896325,0.000153,2]
[420316795,1775956246671,-80660.36942589,0.000153,2]
[420316796,1775956246682,-150.0,0.000153,2]
[420316797,1775956246722,-150.0,0.00015301,2]
[420316798,1775956246731,-150.0,0.00015304,2]
[420316799,1775956246747,-150.0,0.00015304,2]
[420316800,1775956246766,-169.52179159,0.00015305,2]
[420316801,1775956246777,-150.0,0.00015309,2]
[420316802,1775956246788,-150.0,0.00015312,2]
[420316803,1775956246807,-150.0,0.00015312,2]
[420316804,1775956246817,-150.0,0.00015314,2]
[420316805,1775956246827,-169.52179159,0.00015321,2]
[420316806,1775956246839,-150.0,0.00015324,2]
[420316807,1775956246853,-150.0,0.00015327,2]
[420316808,1775956246863,-150.0,0.00015328,2]
[420316810,1775956246874,-150.0,0.0001533,2]
[420316812,1775956246892,-150.0,0.0001533,2]
[420316814,1775956246902,-169.52179159,0.00015337,2]
[420316816,1775956246911,-150.0,0.00015341,2]
[420316818,1775956246927,-150.0,0.00015345,2]
[420316820,1775956246937,-150.0,0.00015346,2]
[420316822,1775956246947,-165.29,0.00015347,2]
[420316824,1775956246960,-150.0,0.00015349,2]
[420316826,1775956246974,-150.0,0.00015349,2]
[420316828,1775956246986,-150.0,0.00015351,2]
[420316830,1775956246995,-169.52179159,0.00015354,2]
[420316832,1775956247009,-150.0,0.0001536,2]
[420316834,1775956247019,-150.0,0.0001536,2]
[420316836,1775956247044,-150.0,0.00015364,2]
[420316838,1775956247053,-150.0,0.00015367,2]
[420316840,1775956247062,-150.0,0.00015367,2]
[420316842,1775956247080,-150.0,0.00015369,2]
[420316844,1775956247094,-169.52179159,0.0001537,2]
[420316846,1775956247106,-150.0,0.00015374,2]
[420316848,1775956247115,-150.0,0.00015374,2]
[420316850,1775956247139,-150.0,0.00015382,2]
[420316851,1775956247151,-169.52179159,0.00015386,2]
[420316853,1775956247165,-150.0,0.00015386,2]
[420316856,1775956247202,-150.0,0.00015386,2]
[420316857,1775956247213,-150.0,0.00015388,2]
[420316860,1775956247229,-150.0,0.00015392,2]
[420316861,1775956247268,-150.0,0.00015397,2]
[420316863,1775956247282,-150.0,0.000154,2]
[420316866,1775956247302,-169.52179159,0.00015402,2]
[420316867,1775956247313,-150.0,0.00015405,2]
[420316869,1775956247326,-150.0,0.00015405,2]
[420316871,1775956247342,-150.0,0.00015406,2]
[420316873,1775956247365,-150.0,0.00015414,2]
[420316875,1775956247374,-150.0,0.00015418,2]
[420316878,1775956247384,-169.52179159,0.00015418,2]
[420316879,1775956247403,-150.0,0.0001542,2]
[420316881,1775956247412,-150.0,0.00015423,2]
[420316905,1775956247751,-150.0,0.00015423,2]
[420316906,1775956247790,-169.52179159,0.00015434,2]
[420316907,1775956247807,-150.0,0.00015435,2]
[420316908,1775956247836,-150.0,0.00015436,2]
[420316909,1775956247846,-150.0,0.00015437,2]
[420316910,1775956247862,-150.0,0.00015442,2]
[420316911,1775956247881,-150.0,0.00015442,2]
[420316912,1775956247890,-150.0,0.00015443,2]
[420316913,1775956247906,-150.0,0.00015443,2]
[420316914,1775956247925,-169.52179159,0.00015451,2]
[420316915,1775956247935,-150.0,0.00015451,2]
[420316916,1775956247948,-150.0,0.00015455,2]
[420316917,1775956247977,-150.0,0.00015459,2]
[420316918,1775956247988,-150.0,0.0001546,2]
[420316919,1775956248000,-150.0,0.0001546,2]
[420316920,1775956248009,-150.0,0.00015467,2]
[420316921,1775956248023,-150.0,0.00015467,2]
[420316922,1775956248035,-150.0,0.00015467,2]
[420316923,1775956248046,-169.52179159,0.00015467,2]
[420316924,1775956248056,-150.0,0.00015473,2]
[420316925,1775956248070,-150.0,0.00015479,2]
[420316926,1775956248082,-150.0,0.00015479,2]
[420316927,1775956248091,-150.0,0.00015482,2]
[420316928,1775956248101,-150.0,0.00015482,2]
[420316929,1775956248117,-169.52179159,0.00015483,2]
[420316930,1775956248130,-150.0,0.0001549,2]
[420316931,1775956248139,-150.0,0.00015491,2]
[420316932,1775956248149,-150.0,0.00015497,2]
[420316933,1775956248164,-150.0,0.00015498,2]
[420316934,1775956248177,-150.0,0.00015498,2]
[420316935,1775956248187,-169.52179159,0.00015499,2]
[420316936,1775956248200,-150.0,0.00015504,2]
[420316937,1775956248209,-150.0,0.00015509,2]
[420316938,1775956248226,-150.0,0.00015513,2]
[420316939,1775956248235,-150.0,0.00015513,2]
[420316940,1775956248248,-169.52179159,0.00015515,2]
[420316941,1775956248263,-150.0,0.00015516,2]
[420316942,1775956248276,-150.0,0.00015516,2]
[420316943,1775956248289,-150.0,0.0001552,2]
[420316944,1775956248300,-150.0,0.00015527,2]
[420316945,1775956248319,-150.0,0.00015527,2]
[420316946,1775956248328,-150.0,0.00015529,2]
[420316947,1775956248364,-169.52179159,0.00015531,2]
[420316948,1775956248389,-150.0,0.00015535,2]
[420316949,1775956248406,-150.0,0.00015535,2]
[420316950,1775956248426,-150.0,0.00015536,2]
[420316951,1775956248437,-150.0,0.00015543,2]
[420316952,1775956248448,-150.0,0.00015545,2]
[420316953,1775956248463,-169.52179159,0.00015547,2]
[420316954,1775956248479,-150.0,0.00015549,2]
[420316955,1775956248488,-150.0,0.00015553,2]
[420316956,1775956248504,-150.0,0.00015553,2]
[420316957,1775956248525,-150.0,0.00015559,2]
[420316958,1775956248535,-150.0,0.00015564,2]
[420316959,1775956248546,-169.52179159,0.00015564,2]
[420316960,1775956248566,-150.0,0.00015572,2]
[420316961,1775956248575,-150.0,0.00015572,2]
[420316962,1775956248585,-150.0,0.00015572,2]
[420316963,1775956248604,-150.0,0.00015576,2]
[420316964,1775956248618,-169.52179159,0.0001558,2]
[420316965,1775956248629,-150.0,0.00015582,2]
[420316966,1775956248651,-166.66,0.00015582,2]
[420316967,1775956248662,-150.0,0.00015583,2]
[420316968,1775956248680,-150.0,0.00015583,2]
[420316969,1775956248693,-150.0,0.00015589,2]
[420316970,1775956248704,-150.0,0.00015591,2]
[420316971,1775956248723,-150.0,0.00015591,2]
[420316972,1775956248749,-150.0,0.00015594,2]
[420316973,1775956248769,-169.52179159,0.00015596,2]
[420316974,1775956248785,-150.0,0.000156,2]
[420316975,1775956248822,-150.0,0.000156,2]
[420316976,1775956248832,-150.0,0.00015606,2]
[420316977,1775956248865,-150.0,0.00015609,2]
[420316978,1775956248884,-150.0,0.00015609,2]
[420316979,1775956248895,-169.52179159,0.00015612,2]
[420316980,1775956248915,-150.0,0.00015617,2]
[420316981,1775956248926,-150.0,0.00015618,2]
[420316982,1775956248939,-150.0,0.00015624,2]
[420316983,1775956248958,-150.0,0.00015628,2]
[420316984,1775956248981,-150.0,0.00015628,2]
[420316985,1775956248992,-169.52179159,0.00015628,2]
[420316986,1775956249022,-150.0,0.00015629,2]
[420316987,1775956249036,-150.0,0.00015634,2]
[420316988,1775956249045,-150.0,0.00015636,2]
[420316989,1775956249058,-150.0,0.00015639,2]
[420316990,1775956249075,-169.52179159,0.00015644,2]
[420316991,1775956249085,-150.0,0.00015647,2]
[420316992,1775956249094,-150.0,0.00015647,2]
[420316993,1775956249106,-150.0,0.00015652,2]
[420316994,1775956249117,-150.0,0.00015652,2]
[420316995,1775956249126,-150.0,0.00015655,2]
[420316996,1775956249136,-169.52179159,0.00015661,2]
[420316997,1775956249145,-150.0,0.00015662,2]
[420316998,1775956249170,-150.0,0.00015665,2]
[420316999,1775956249179,-150.0,0.00015665,2]
[420317000,1775956249189,-150.0,0.00015671,2]
[420317001,1775956249201,-150.0,0.00015673,2]
[420317002,1775956249214,-150.0,0.00015675,2]
[420317003,1775956249224,-169.52179159,0.00015677,2]
[420317004,1775956249235,-150.0,0.0001568,2]
[420317005,1775956249247,-150.0,0.0001568,2]
[420317006,1775956249265,-150.0,0.00015684,2]
[420317007,1775956249277,-150.0,0.00015684,2]
[420317008,1775956249285,-150.0,0.00015685,2]
[420317009,1775956249303,-150.0,0.00015691,2]
[420317010,1775956249319,-169.52179159,0.00015693,2]
[420317011,1775956249328,-150.0,0.00015699,2]
[420317012,1775956249346,-150.0,0.00015702,2]
[420317013,1775956249359,-150.0,0.00015702,2]
[420317014,1775956249386,-150.0,0.00015707,2]
[420317015,1775956249396,-150.0,0.00015709,2]
[420317016,1775956249423,-169.52179159,0.00015709,2]
[420317017,1775956249432,-150.0,0.00015718,2]
[420317018,1775956249442,-150.0,0.00015721,2]
[420317019,1775956249456,-150.0,0.00015721,2]
[420317020,1775956249466,-150.0,0.00015722,2]
[420317021,1775956249475,-150.0,0.00015722,2]
[420317022,1775956249486,-169.52179159,0.00015725,2]
[420317023,1775956249504,-150.0,0.00015726,2]
[420317024,1775956249513,-150.0,0.00015727,2]
[420317025,1775956249523,-150.0,0.0001573,2]
[420317026,1775956249532,-150.0,0.00015733,2]
[420317027,1775956249546,-150.0,0.0001574,2]
[420317028,1775956249557,-150.0,0.0001574,2]
[420317029,1775956249571,-169.52179159,0.00015741,2]
[420317030,1775956249583,-150.0,0.00015745,2]
[420317031,1775956249613,-150.0,0.00015745,2]
[420317032,1775956249627,-150.0,0.00015752,2]
[420317033,1775956249640,-169.52179159,0.00015758,2]
[420317034,1775956249658,-150.0,0.00015758,2]
[420317035,1775956249668,-150.0,0.00015758,2]
[420317036,1775956249679,-150.0,0.00015764,2]
[420317037,1775956249705,-150.0,0.00015765,2]
[420317038,1775956249715,-150.0,0.00015768,2]
[420317039,1775956249726,-150.0,0.00015771,2]
[420317040,1775956249748,-169.52179159,0.00015774,2]
[420317041,1775956249757,-150.0,0.00015775,2]
[420317042,1775956249769,-150.0,0.00015777,2]
[420317043,1775956249784,-150.0,0.00015777,2]
[420317044,1775956249799,-150.0,0.00015782,2]
[420317045,1775956249810,-169.52179159,0.0001579,2]
[420317046,1775956249821,-150.0,0.00015791,2]
[420317047,1775956249844,-150.0,0.00015791,2]
[420317048,1775956249854,-150.0,0.00015795,2]
[420317049,1775956249863,-150.0,0.00015795,2]
[420317050,1775956249878,-150.0,0.00015797,2]
[420317051,1775956249890,-150.0,0.000158,2]
[420317052,1775956249899,-169.52179159,0.00015806,2]
[420317053,1775956249914,-150.0,0.00015812,2]
[420317054,1775956249925,-150.0,0.00015814,2]
[420317055,1775956249936,-150.0,0.00015814,2]
[420317056,1775956249971,-150.0,0.00015814,2]
[420317057,1775956249983,-150.0,0.00015817,2]
[420317058,1775956249996,-150.0,0.00015818,2]
[420317059,1775956250006,-150.0,0.0001582,2]
[420317060,1775956250015,-1000.0,0.00015821,2]
[420317061,1775956250027,-500.0,0.00015821,2]
[420317062,1775956250042,-1000.0,0.00015821,2]
[420317063,1775956250051,-1000.0,0.00015821,2]
[420317064,1775956250065,-1000.0,0.00015821,2]
[420317065,1775956250075,-1000.0,0.00015821,2]
[420317066,1775956250090,-169.52179159,0.00015822,2]
[420317067,1775956250099,-150.0,0.00015833,2]
[420317068,1775956250117,-150.0,0.00015833,2]
[420317069,1775956250135,-150.0,0.00015836,2]
[420317070,1775956250157,-150.0,0.00015838,2]
[420317071,1775956250168,-169.52179159,0.00015838,2]
[420317072,1775956250193,-150.0,0.0001584,2]
[420317073,1775956250209,-150.0,0.00015842,2]
[420317074,1775956250221,-150.0,0.00015851,2]
[420317075,1775956250243,-150.0,0.00015851,2]
[420317076,1775956250253,-150.0,0.00015855,2]
[420317077,1775956250288,-169.52179159,0.00015855,2]
[420317078,1775956250302,-150.0,0.00015859,2]
[420317079,1775956250328,-150.0,0.00015861,2]
[420317080,1775956250341,-150.0,0.00015861,2]
[420317081,1775956250372,-150.0,0.00015863,2]
[420317082,1775956250383,-150.0,0.00015865,2]
[420317083,1775956250404,-150.0,0.0001587,2]
[420317084,1775956250418,-150.0,0.0001587,2]
[420317085,1775956250429,-169.52179159,0.00015871,2]
[420317086,1775956250438,-150.0,0.00015873,2]